bitfinex/quotes_BTCUSD_20251214
["timestamp","ask_amount","ask_price","bid_price","bid_amount"]
[1765697326351,0.12414425,90182.0,90181.0,0.01207322]
[1765697326756,0.01353287,90182.0,90181.0,0.01207322]
[1765697336589,0.00361287,90182.0,90181.0,0.01207322]
[1765697344318,0.00361287,90182.0,90181.0,0.0121841]
[1765697354147,0.00361287,90182.0,90181.0,0.0529741]
[1765697354774,0.00361287,90182.0,90181.0,0.0281741]
[1765697355773,0.00361287,90182.0,90181.0,0.0121841]
[1765697364072,0.22538661,90182.0,90181.0,0.0121841]
[1765697369522,0.33599799,90182.0,90181.0,0.0121841]
[1765697369703,0.22538661,90182.0,90181.0,0.0121841]
[1765697376436,0.24160661,90182.0,90181.0,0.0121841]
[1765697376724,0.26611661,90182.0,90181.0,0.0121841]
[1765697376887,0.37672799,90182.0,90181.0,0.0121841]
[1765697381395,0.26611661,90182.0,90181.0,0.0121841]
[1765697381581,0.37672799,90182.0,90181.0,0.0121841]
[1765697388511,0.26611661,90182.0,90181.0,0.0121841]
[1765697389597,0.37672799,90182.0,90181.0,0.0121841]
[1765697389995,0.26611661,90182.0,90181.0,0.0121841]
[1765697390205,0.37672799,90182.0,90181.0,0.0121841]
[1765697392357,0.26611661,90182.0,90181.0,0.0121841]
[1765697397886,0.37672799,90182.0,90181.0,0.0121841]
[1765697400537,0.35221799,90182.0,90181.0,0.0121841]
[1765697400764,0.22538661,90182.0,90181.0,0.0121841]
[1765697402135,0.22377374,90182.0,90181.0,0.0619641]
[1765697402306,0.22377374,90182.0,90181.0,0.0388941]
[1765697402888,0.22377374,90182.0,90181.0,0.0235941]
[1765697408247,0.22377374,90182.0,90181.0,0.0619641]
[1765697408454,0.002,90182.0,90181.0,0.0619641]
[1765697412850,0.002,90182.0,90181.0,0.0235941]
[1765697420492,0.002,90182.0,90181.0,0.0619641]
[1765697435501,0.002,90182.0,90181.0,0.0235941]
[1765697436956,0.002,90182.0,90181.0,0.0121841]
[1765697450320,0.002,90182.0,90181.0,0.01207322]
[1765697451502,0.002,90182.0,90181.0,0.03973322]
[1765697451704,0.002,90182.0,90181.0,0.06417322]
[1765697460947,0.002,90182.0,90181.0,0.03973322]
[1765697461500,0.11311713,90182.0,90181.0,0.01207322]
[1765697461799,0.22178358,90178.0,90176.0,0.000386]
[1765697461931,0.02534,90177.0,90176.0,0.000386]
[1765697462135,0.16083425,90177.0,90176.0,0.000386]
[1765697462570,0.16083425,90177.0,90176.0,0.03369385]
[1765697463984,0.16283425,90177.0,90176.0,0.03369385]
[1765697464184,0.00361287,90177.0,90176.0,0.03369385]
[1765697464385,0.00361287,90177.0,90176.0,0.07339385]
[1765697464573,0.002,90177.0,90176.0,0.07339385]
[1765697465144,0.004,90177.0,90176.0,0.07339385]
[1765697465318,0.002,90177.0,90176.0,0.07339385]
[1765697465525,0.23287141,90179.0,90176.0,0.07339385]
[1765697465763,0.23287141,90179.0,90178.0,0.01624]
[1765697466183,0.23287141,90179.0,90178.0,0.04954578]
[1765697466809,0.23387141,90179.0,90178.0,0.04954578]
[1765697467005,0.23487141,90179.0,90178.0,0.04954578]
[1765697467207,0.23387141,90179.0,90178.0,0.04954578]
[1765697468410,0.001,90179.0,90178.0,0.04954578]
[1765697468565,0.002,90179.0,90178.0,0.07300578]
[1765697468768,0.002,90179.0,90178.0,0.29478936]
[1765697469185,0.002,90179.0,90178.0,1.28098036]
[1765697469384,0.002,90179.0,90178.0,1.39169082]
[1765697470315,0.001,90179.0,90178.0,1.39169082]
[1765697471276,0.0110877,90190.0,90187.0,0.01108807]
[1765697471625,0.01108758,90191.0,90189.0,0.02781]
[1765697471796,0.01108758,90191.0,90190.0,0.01624]
[1765697472005,0.23283569,90193.0,90190.0,0.0397]
[1765697472206,0.23283569,90193.0,90191.0,0.03503]
[1765697472370,0.23283569,90193.0,90191.0,0.01157]
[1765697472565,0.23283569,90193.0,90192.0,0.02346]
[1765697473034,0.23283569,90193.0,90192.0,0.05676134]
[1765697473222,0.23483569,90193.0,90192.0,0.05676134]
[1765697474394,0.23283569,90193.0,90192.0,0.05676134]
[1765697474597,0.23383569,90193.0,90192.0,0.05676134]
[1765697474799,0.23483569,90193.0,90192.0,0.05676134]
[1765697475804,0.23583569,90193.0,90192.0,0.05676134]
[1765697476638,0.23583569,90193.0,90192.0,0.03330134]
[1765697477896,0.23583569,90193.0,90191.0,0.01157]
[1765697478097,0.23583569,90193.0,90191.0,0.03503]
[1765697478838,0.23383569,90193.0,90191.0,0.03503]
[1765697479042,0.23283569,90193.0,90191.0,0.03503]
[1765697479239,0.23483569,90193.0,90191.0,0.03503]
[1765697479456,0.23583569,90193.0,90191.0,0.03503]
[1765697483958,0.23583569,90193.0,90191.0,0.01157]
[1765697487849,0.22175407,90190.0,90189.0,0.03330134]
[1765697488048,0.33236545,90190.0,90189.0,0.03330134]
[1765697488471,0.22175407,90190.0,90189.0,0.03330134]
[1765697488848,0.22275407,90190.0,90189.0,0.03330134]
[1765697489385,0.22375407,90190.0,90189.0,0.03330134]
[1765697490002,0.22536694,90190.0,90189.0,0.03330134]
[1765697490373,0.22177453,90182.0,90177.0,0.0399193]
[1765697490570,0.01108856,90183.0,90178.0,0.23287231]
[1765697490886,0.01108856,90183.0,90181.0,0.03330134]
[1765697492285,0.23285985,90183.0,90181.0,0.03430134]
[1765697492664,0.23285985,90183.0,90181.0,0.001]
[1765697493045,0.23285985,90183.0,90182.0,0.03330134]
[1765697494256,0.23285985,90183.0,90182.0,0.03430134]
[1765697505204,0.01108856,90183.0,90182.0,0.03430134]
[1765697505789,0.01108819,90186.0,90183.0,0.01108856]
[1765697505967,0.01108819,90186.0,90185.0,0.02673]
[1765697506366,0.01108819,90186.0,90185.0,0.0783]
[1765697506973,0.01108794,90188.0,90185.0,0.0783]
[1765697507197,0.23284904,90188.0,90186.0,0.04022]
[1765697507394,0.23284904,90188.0,90187.0,0.01538]
[1765697507652,0.23284904,90188.0,90187.0,0.07352134]
[1765697509333,0.23384904,90188.0,90187.0,0.07352134]
[1765697509834,0.23384904,90188.0,90187.0,0.08487134]
[1765697510949,0.01208794,90188.0,90187.0,0.08487134]
[1765697519489,0.01208794,90188.0,90187.0,0.06003134]
[1765697519704,0.01208794,90188.0,90187.0,0.04465134]
[1765697522596,0.01208794,90188.0,90187.0,0.03330134]
[1765697538568,0.02711794,90188.0,90187.0,0.03330134]
[1765697538873,0.13772932,90188.0,90187.0,0.03330134]
[1765697539123,0.01208794,90188.0,90187.0,0.03330134]
[1765697560653,0.22347358,90188.0,90187.0,0.03330134]
[1765697560847,0.25119345,90188.0,90187.0,0.03330134]
[1765697561047,0.22347358,90188.0,90187.0,0.03330134]
[1765697561646,0.1128622,90188.0,90187.0,0.03330134]
[1765697561914,0.14058207,90188.0,90187.0,0.03330134]
[1765697579552,0.14058207,90188.0,90181.0,0.000112]
[1765697579553,0.11061138,90182.0,90181.0,0.000112]
[1765697579759,0.38596683,90182.0,90181.0,0.000112]
[1765697579967,0.38088512,90182.0,90181.0,0.000112]
[1765697580764,0.38288512,90182.0,90181.0,0.000112]
[1765697581463,0.38488512,90182.0,90181.0,0.000112]
[1765697582381,0.38488512,90182.0,90137.0,0.01204]
[1765697582382,0.11061138,90151.0,90137.0,0.01204]
[1765697582572,0.11061138,90151.0,90132.0,0.28474929]
[1765697582573,0.36588138,90151.0,90148.0,0.03330729]
[1765697582810,0.38852138,90151.0,90132.0,0.01204]
[1765697583034,0.38852138,90151.0,90143.0,0.01204]
[1765697584292,0.39152138,90151.0,90143.0,0.01204]
[1765697584838,0.39152138,90151.0,90150.0,0.0012]
[1765697585043,0.36888138,90151.0,90150.0,0.0002]
[1765697585450,0.37188138,90151.0,90150.0,0.0002]
[1765697585656,0.39452138,90151.0,90150.0,0.0002]
[1765697586411,0.37704138,90151.0,90150.0,0.0002]
[1765697586619,0.37865425,90151.0,90150.0,0.0002]
[1765697586804,0.39613425,90151.0,90150.0,0.0002]
[1765697587014,0.37865425,90151.0,90150.0,0.0002]
[1765697587220,0.00761287,90151.0,90150.0,0.03985]
[1765697587651,0.00761287,90151.0,90150.0,0.01685]
[1765697587852,0.00761287,90151.0,90150.0,0.01753781]
[1765697588266,0.00761287,90151.0,90150.0,0.00088781]
[1765697589227,0.006,90151.0,90150.0,0.00088781]
[1765697589436,0.006,90151.0,90150.0,0.05163006]
[1765697594127,0.01109176,90157.0,90154.0,0.01109213]
[1765697594535,0.01109163,90158.0,90156.0,0.00050835]
[1765697594738,0.01109163,90158.0,90155.0,0.04518376]
[1765697595119,0.01109163,90158.0,90155.0,0.034092]
[1765697595336,0.01109163,90158.0,90156.0,0.03331454]
[1765697595669,0.01409163,90158.0,90156.0,0.03331454]
[1765697596026,0.01109163,90158.0,90156.0,0.03331454]
[1765697596233,0.01509163,90158.0,90156.0,0.03331454]
[1765697596661,0.01109163,90158.0,90157.0,0.01665]
[1765697596820,0.01109151,90159.0,90157.0,0.03965]
[1765697597019,0.01109139,90160.0,90158.0,0.01665]
[1765697597241,0.01109139,90160.0,90159.0,0.01665]
[1765697597884,0.01109139,90160.0,90159.0,0.04996454]
[1765697598589,0.01509139,90160.0,90159.0,0.04996454]
[1765697598788,0.01509139,90160.0,90159.0,0.01665]
[1765697599873,0.01909139,90160.0,90159.0,0.01665]
[1765697600520,0.008,90160.0,90159.0,0.01665]
[1765697601321,0.22982786,90160.0,90159.0,0.01665]
[1765697601506,0.008,90160.0,90159.0,0.01665]
[1765697602652,0.008,90160.0,90159.0,0.01676572]
[1765697605143,0.008,90160.0,90159.0,0.01718434]
[1765697605619,0.008,90160.0,90159.0,0.04142434]
[1765697606217,0.004,90160.0,90159.0,0.04142434]
[1765697606625,0.004,90160.0,90159.0,0.05251585]
[1765697607053,0.007,90160.0,90159.0,0.05251585]
[1765697607271,0.004,90160.0,90159.0,0.05251585]
[1765697607483,0.006,90160.0,90159.0,0.05251585]
[1765697608483,0.002,90160.0,90159.0,0.05251585]
[1765697608947,0.004,90160.0,90159.0,0.05251585]
[1765697615908,0.004,90160.0,90159.0,0.00053434]
[1765697617856,0.11461138,90160.0,90159.0,0.00053434]
[1765697618372,0.004,90160.0,90159.0,0.00053434]
[1765697647253,0.004,90160.0,90159.0,0.03965434]
[1765697659197,0.004,90160.0,90159.0,0.072966]
[1765697664742,0.004,90160.0,90159.0,0.084186]
[1765697696471,0.004,90160.0,90159.0,0.19489646]
[1765697696678,0.004,90160.0,90159.0,0.084186]
[1765697701322,0.004,90160.0,90159.0,1.07158895]
[1765697701478,0.004,90160.0,90159.0,0.266786]
[1765697701687,0.004,90160.0,90159.0,1.070377]
[1765697703025,0.004,90160.0,90159.0,0.084186]
[1765697704301,0.004,90160.0,90159.0,0.252886]
[1765697705379,0.004,90160.0,90159.0,1.070377]
[1765697709873,0.004,90160.0,90159.0,0.033846]
[1765697712478,0.004,90160.0,90159.0,0.29696632]
[1765697729998,0.004,90160.0,90159.0,1.28315732]
[1765697730393,0.004,90160.0,90159.0,1.39386778]
[1765697730569,0.004,90160.0,90159.0,1.28315732]
[1765697733173,0.004,90160.0,90159.0,0.29696632]
[1765697733357,0.004,90160.0,90159.0,1.28315732]
[1765697736821,0.004,90160.0,90159.0,1.29444732]
[1765697741212,0.004,90160.0,90159.0,0.30825632]
[1765697741506,0.004,90160.0,90159.0,1.29444732]
[1765697756126,0.004,90160.0,90159.0,0.225926]
[1765697756325,0.004,90160.0,90159.0,0.201126]
[1765697756525,0.004,90160.0,90159.0,1.047817]
[1765697757297,0.11461138,90160.0,90159.0,0.171846]
[1765697757518,0.11461138,90160.0,90159.0,1.020037]
[1765697757718,0.004,90160.0,90159.0,0.182146]
[1765697758440,0.004,90160.0,90159.0,1.006846]
[1765697759267,0.004,90160.0,90159.0,0.894046]
[1765697759464,0.004,90160.0,90159.0,0.929946]
[1765697760493,0.004,90160.0,90159.0,0.937346]
[1765697761582,0.004,90160.0,90159.0,1.058437]
[1765697761781,0.004,90160.0,90159.0,1.16914746]
[1765697762977,0.004,90160.0,90159.0,1.24897925]
[1765697763598,0.002,90160.0,90159.0,1.24897925]
[1765697763966,0.01108881,90181.0,90177.0,0.0110893]
[1765697764146,0.01108881,90181.0,90180.0,0.0236]
[1765697764502,0.01108881,90181.0,90180.0,0.04668]
[1765697764707,0.01108881,90181.0,90180.0,0.07998533]
[1765697765106,0.23285999,90183.0,90180.0,0.07998533]
[1765697765316,0.23285999,90183.0,90182.0,0.02684]
[1765697765718,0.23285999,90183.0,90182.0,0.04992]
[1765697766244,0.23285999,90183.0,90182.0,0.08322533]
[1765697766829,0.23285609,90185.0,90182.0,0.08322533]
[1765697767051,0.01108819,90186.0,90184.0,0.02684]
[1765697767608,0.01108819,90186.0,90185.0,0.03330337]
[1765697768609,0.01508819,90186.0,90185.0,0.03330337]
[1765697768814,0.01308819,90186.0,90185.0,0.03330337]
[1765697769597,0.01108819,90186.0,90185.0,0.03330337]
[1765697770010,0.01308819,90186.0,90185.0,0.03330337]
[1765697770232,0.01508819,90186.0,90185.0,0.03330337]
[1765697772074,0.004,90186.0,90185.0,0.03330337]
[1765697772532,0.004,90186.0,90185.0,0.07170337]
[1765697773304,0.002,90186.0,90185.0,0.07170337]
[1765697773485,0.0110877,90190.0,90186.0,0.01108819]
[1765697773685,0.0110877,90190.0,90186.0,0.03416819]
[1765697773902,0.23283607,90193.0,90190.0,0.986191]
[1765697773903,0.01108733,90193.0,90190.0,0.986191]
[1765697774127,0.01108733,90193.0,90192.0,1.001511]
[1765697774330,0.01108733,90193.0,90192.0,0.17532]
[1765697774717,0.01108733,90193.0,90192.0,0.2086213]
[1765697774895,0.01108733,90193.0,90192.0,0.4969213]
[1765697775291,0.01347333,90193.0,90192.0,0.4569213]
[1765697775496,0.01347333,90193.0,90192.0,0.4377213]
[1765697775893,0.01147333,90193.0,90192.0,0.4560213]
[1765697776681,0.01347333,90193.0,90192.0,0.3558213]
[1765697777009,0.01347333,90193.0,90192.0,0.3574213]
[1765697777175,0.01547333,90193.0,90192.0,0.3574213]
[1765697778062,0.01547333,90193.0,90192.0,1.0578923]
[1765697778627,0.01547333,90193.0,90192.0,1.0348123]
[1765697778985,0.01547333,90193.0,90192.0,0.0486213]
[1765697779191,0.01547333,90193.0,90192.0,1.0348123]
[1765697780024,0.01547333,90193.0,90192.0,1.001511]
[1765697780823,0.004386,90193.0,90192.0,1.001511]
[1765697781167,0.004386,90193.0,90192.0,1.024591]
[1765697790415,0.004386,90193.0,90192.0,0.104]
[1765697791218,0.004386,90193.0,90192.0,0.986191]
[1765697791634,0.004386,90193.0,90192.0,0.2121]
[1765697792236,0.004386,90193.0,90192.0,0.986191]
[1765697796326,0.22613489,90193.0,90192.0,0.986191]
[1765697802365,0.22613489,90193.0,90191.0,0.04482005]
[1765697802565,0.22613489,90193.0,90192.0,0.986191]
[1765697803212,0.22413489,90193.0,90192.0,0.986191]
[1765697803631,0.22613489,90193.0,90192.0,0.986191]
[1765697803975,0.22413489,90193.0,90192.0,0.986191]
[1765697804376,0.22613489,90193.0,90192.0,0.986191]
[1765697805376,0.22613489,90193.0,90191.0,0.04482005]
[1765697805599,0.22613489,90193.0,90192.0,0.986191]
[1765697806214,0.22413489,90193.0,90192.0,0.986191]
[1765697806411,0.22413489,90193.0,90191.0,0.06777005]
[1765697806616,0.22613489,90193.0,90192.0,0.986191]
[1765697807165,0.22413489,90193.0,90192.0,0.986191]
[1765697807341,0.22613489,90193.0,90192.0,0.986191]
[1765697813502,0.22613489,90193.0,90191.0,0.04482005]
[1765697813840,0.22613489,90193.0,90192.0,0.986191]
[1765697814395,0.22413489,90193.0,90192.0,0.986191]
[1765697815562,0.22413489,90193.0,90191.0,0.04482005]
[1765697815796,0.22613489,90193.0,90192.0,0.986191]
[1765697815969,0.22413489,90193.0,90192.0,0.986191]
[1765697816575,0.22413489,90193.0,90191.0,0.04482005]
[1765697816736,0.22413489,90193.0,90192.0,0.986191]
[1765697816962,0.22613489,90193.0,90192.0,0.986191]
[1765697817526,0.22413489,90193.0,90192.0,0.986191]
[1765697819386,0.22613489,90193.0,90192.0,0.986191]
[1765697819804,0.22413489,90193.0,90192.0,0.986191]
[1765697820203,0.22613489,90193.0,90192.0,0.986191]
[1765697820405,0.22613489,90193.0,90192.0,0.3932]
[1765697820635,0.22613489,90193.0,90192.0,0.2612]
[1765697821696,0.22613489,90193.0,90192.0,0.986191]
[1765697840223,0.22613489,90193.0,90192.0,1.01949105]
[1765697844010,0.22613489,90193.0,90192.0,0.03330005]
[1765697844243,0.22613489,90193.0,90192.0,1.01949105]
[1765697853296,0.22613489,90193.0,90192.0,0.92830005]
[1765697854076,0.22613489,90193.0,90192.0,1.01949105]
[1765697859556,0.33674627,90193.0,90192.0,1.01949105]
[1765697859966,0.22613489,90193.0,90192.0,1.01949105]
[1765697860614,0.22613489,90193.0,90192.0,0.74930005]
[1765697861380,0.22613489,90193.0,90192.0,1.01949105]
[1765697872405,0.22613489,90193.0,90192.0,0.03330005]
[1765697872610,0.22613489,90193.0,90192.0,1.01949105]
[1765697880833,0.22613489,90193.0,90192.0,0.03330005]
[1765697881037,0.33674627,90193.0,90192.0,1.01949105]
[1765697881229,0.22613489,90193.0,90192.0,1.01949105]
[1765697889926,0.22613489,90193.0,90192.0,0.03330005]
[1765697890101,0.22613489,90193.0,90192.0,1.01949105]
[1765697891909,0.22613489,90193.0,90192.0,0.03330005]
[1765697892057,0.22613489,90193.0,90192.0,1.01949105]
[1765697892734,0.33674627,90193.0,90192.0,1.01949105]
[1765697893107,0.33674627,90193.0,90192.0,0.96800005]
[1765697893731,0.22613489,90193.0,90192.0,0.96800005]
[1765697893927,0.22613489,90193.0,90192.0,0.03330005]
[1765697894154,0.33674627,90193.0,90192.0,1.01949105]
[1765697894650,0.22613489,90193.0,90192.0,1.01949105]
[1765697899647,0.33674627,90193.0,90192.0,1.01949105]
[1765697900161,0.22613489,90193.0,90192.0,1.01949105]
[1765697904227,0.33674627,90193.0,90192.0,1.01949105]
[1765697904632,0.22613489,90193.0,90192.0,1.01949105]
[1765697916913,0.004386,90193.0,90192.0,1.05990105]
[1765697917951,0.004386,90193.0,90192.0,1.17061151]
[1765697918153,0.002386,90193.0,90192.0,1.05990105]
[1765697918358,0.000386,90193.0,90192.0,1.05990105]
[1765697918557,0.000386,90193.0,90192.0,1.06290105]
[1765697923293,0.000386,90193.0,90192.0,0.07671005]
[1765697923478,0.000386,90193.0,90192.0,1.06290105]
[1765697924271,0.000386,90193.0,90192.0,0.07671005]
[1765697924478,0.000386,90193.0,90192.0,1.06290105]
[1765697935406,0.000386,90193.0,90192.0,0.07671005]
[1765697935603,0.000386,90193.0,90192.0,1.06290105]
[1765697935805,0.000386,90193.0,90192.0,1.2846502]
[1765697937475,0.000386,90193.0,90192.0,0.2984592]
[1765697937686,0.000386,90193.0,90192.0,1.2846502]
[1765697939243,0.000386,90193.0,90192.0,1.06290105]
[1765697946615,0.000386,90193.0,90192.0,0.07671005]
[1765697946816,0.000386,90193.0,90192.0,1.06290105]
[1765697948623,0.000386,90193.0,90192.0,0.07671005]
[1765697948824,0.000386,90193.0,90192.0,1.06290105]
[1765697969027,0.000386,90193.0,90192.0,0.07671005]
[1765697969261,0.000386,90193.0,90192.0,1.06290105]
[1765697970907,0.000386,90193.0,90192.0,1.17361151]
[1765697971406,0.000386,90193.0,90192.0,1.06290105]
[1765697980786,0.000386,90193.0,90192.0,1.17361151]
[1765697981213,0.000386,90193.0,90192.0,0.07671005]
[1765697981418,0.000386,90193.0,90192.0,1.17361151]
[1765697986552,0.000386,90193.0,90192.0,1.06290105]
[1765697986750,0.000386,90193.0,90192.0,1.17361151]
[1765697988154,0.000386,90193.0,90192.0,1.06290105]
[1765697989307,0.000386,90193.0,90192.0,0.07671005]
[1765697989588,0.000386,90193.0,90192.0,1.06290105]
[1765697992306,0.000386,90193.0,90192.0,0.07671005]
[1765697992516,0.000386,90193.0,90192.0,1.06290105]
[1765698004886,0.000386,90193.0,90192.0,1.07439105]
[1765698006518,0.000386,90193.0,90192.0,0.08820005]
[1765698006716,0.000386,90193.0,90192.0,1.07439105]
[1765698007370,0.000386,90193.0,90192.0,1.18510151]
[1765698008036,0.000386,90193.0,90192.0,1.07439105]
[1765698009238,0.000386,90193.0,90192.0,1.18510151]
[1765698009885,0.000386,90193.0,90192.0,1.07439105]
[1765698010967,0.000386,90193.0,90192.0,1.18510151]
[1765698012643,0.000386,90193.0,90192.0,0.19891051]
[1765698012847,0.000386,90193.0,90192.0,1.18510151]
[1765698013211,0.000386,90193.0,90192.0,1.07439105]
[1765698015372,0.000386,90193.0,90192.0,1.18510151]
[1765698017599,0.000386,90193.0,90192.0,1.07439105]
[1765698020254,0.000386,90193.0,90192.0,1.18510151]
[1765698022743,0.000386,90193.0,90192.0,1.07439105]
[1765698023019,0.000386,90193.0,90192.0,0.08820005]
[1765698023300,0.000386,90193.0,90192.0,1.07439105]
[1765698025876,0.000386,90193.0,90192.0,0.08820005]
[1765698026078,0.000386,90193.0,90192.0,1.07439105]
[1765698036392,0.000386,90193.0,90192.0,1.18510151]
[1765698041919,0.000386,90193.0,90192.0,1.07439105]
[1765698042105,0.000386,90193.0,90192.0,1.18510151]
[1765698042756,0.000386,90193.0,90192.0,1.07439105]
[1765698043063,0.000386,90193.0,90192.0,1.18510151]
[1765698045399,0.000386,90193.0,90192.0,0.19891051]
[1765698045534,0.000386,90193.0,90192.0,1.18510151]
[1765698046376,0.000386,90193.0,90192.0,0.19891051]
[1765698046575,0.000386,90193.0,90192.0,1.18510151]
[1765698048564,0.000386,90193.0,90192.0,1.07439105]
[1765698049724,0.000386,90193.0,90192.0,1.18510151]
[1765698050064,0.000386,90193.0,90192.0,1.07439105]
[1765698051704,0.000386,90193.0,90192.0,1.18510151]
[1765698054605,0.000386,90193.0,90192.0,0.19891051]
[1765698054883,0.000386,90193.0,90192.0,1.18510151]
[1765698057089,0.000386,90193.0,90192.0,1.07439105]
[1765698058668,0.000386,90193.0,90192.0,0.08820005]
[1765698058843,0.000386,90193.0,90192.0,1.07439105]
[1765698059688,0.000386,90193.0,90192.0,0.08820005]
[1765698059856,0.000386,90193.0,90192.0,1.07439105]
[1765698062112,0.000386,90193.0,90192.0,1.05508475]
[1765698065725,0.000386,90193.0,90192.0,1.16579521]
[1765698065937,0.000386,90193.0,90192.0,1.05508475]
[1765698071341,0.000386,90193.0,90192.0,1.16579521]
[1765698073851,0.000386,90193.0,90192.0,1.05508475]
[1765698075931,0.000386,90193.0,90192.0,0.06889375]
[1765698076153,0.000386,90193.0,90192.0,1.05508475]
[1765698077009,0.000386,90193.0,90192.0,0.06889375]
[1765698077242,0.000386,90193.0,90192.0,1.05508475]
[1765698078697,0.000386,90193.0,90192.0,1.16579521]
[1765698078899,0.000386,90193.0,90192.0,1.05508475]
[1765698079099,0.000386,90193.0,90192.0,1.16579521]
[1765698079502,0.000386,90193.0,90192.0,1.05508475]
[1765698089293,0.000386,90193.0,90192.0,0.06889375]
[1765698089508,0.000386,90193.0,90192.0,1.05508475]
[1765698101420,0.000386,90193.0,90192.0,0.17960421]
[1765698101624,0.000386,90193.0,90192.0,1.16579521]
[1765698107123,0.000386,90193.0,90192.0,1.05508475]
[1765698117805,0.000386,90193.0,90192.0,0.06889375]
[1765698117960,0.000386,90193.0,90192.0,1.05508475]
[1765698118856,0.000386,90193.0,90192.0,0.06889375]
[1765698119002,0.000386,90193.0,90192.0,1.05508475]
[1765698120838,0.000386,90193.0,90192.0,0.06889375]
[1765698121043,0.000386,90193.0,90192.0,1.05508475]
[1765698121830,0.000386,90193.0,90192.0,1.16579521]
[1765698122232,0.000386,90193.0,90192.0,1.05508475]
[1765698122426,0.000386,90193.0,90192.0,1.16579521]
[1765698122853,0.000386,90193.0,90192.0,0.17960421]
[1765698123028,0.000386,90193.0,90192.0,1.16579521]
[1765698123235,0.000386,90193.0,90192.0,1.05508475]
[1765698123451,0.000386,90193.0,90192.0,1.16579521]
[1765698123890,0.000386,90193.0,90192.0,1.05508475]
[1765698127005,0.000386,90193.0,90192.0,0.06889375]
[1765698127271,0.000386,90193.0,90192.0,1.05508475]
[1765698145606,0.00199887,90193.0,90192.0,0.35019375]
[1765698145789,0.04212887,90193.0,90192.0,0.35019375]
[1765698146128,0.01805887,90193.0,90192.0,0.35019375]
[1765698147897,0.00199887,90193.0,90192.0,0.35019375]
[1765698159511,0.00199887,90193.0,90192.0,0.36636375]
[1765698159714,0.00199887,90193.0,90192.0,1.04344475]
[1765698166709,0.00199887,90193.0,90192.0,0.05725375]
[1765698167008,0.00199887,90193.0,90192.0,1.04344475]
[1765698170756,0.00199887,90193.0,90192.0,0.05725375]
[1765698170958,0.00199887,90193.0,90192.0,1.04344475]
[1765698172798,0.00199887,90193.0,90192.0,0.05725375]
[1765698173004,0.00199887,90193.0,90192.0,1.04344475]
[1765698174580,0.00199887,90193.0,90192.0,1.15415521]
[1765698174780,0.00199887,90193.0,90192.0,1.04344475]
[1765698181155,0.00199887,90193.0,90192.0,0.05725375]
[1765698181355,0.00199887,90193.0,90192.0,1.04344475]
[1765698182390,0.05134887,90193.0,90192.0,0.01699375]
[1765698182542,0.0790672,90193.0,90192.0,0.01699375]
[1765698182956,0.18967858,90193.0,90192.0,0.01699375]
[1765698183417,0.0790672,90193.0,90192.0,0.01599375]
[1765698183724,0.05134887,90193.0,90192.0,0.01599375]
[1765698184096,0.05134887,90193.0,90192.0,0.01399375]
[1765698193765,0.0790672,90193.0,90192.0,0.01399375]
[1765698196022,0.0790672,90193.0,90192.0,0.01461575]
[1765698204334,0.0790672,90193.0,90192.0,0.000622]
[1765698206189,0.22174915,90192.0,90191.0,0.01523775]
[1765698206378,0.26257915,90192.0,90191.0,0.01523775]
[1765698214687,0.37319053,90192.0,90191.0,0.01523775]
[1765698215086,0.26257915,90192.0,90191.0,0.01523775]
[1765698225666,0.37319053,90192.0,90191.0,0.01523775]
[1765698226277,0.26257915,90192.0,90191.0,0.01523775]
[1765698230503,0.26257915,90192.0,90191.0,0.000622]
[1765698232227,0.26257915,90192.0,90190.0,0.000622]
[1765698232431,0.05090895,90191.0,90190.0,0.000622]
[1765698232590,0.06677895,90191.0,90190.0,0.000622]
[1765698232795,0.07669895,90191.0,90190.0,0.000622]
[1765698235924,0.04898,90191.0,90190.0,0.000622]
[1765698236915,0.02579,90191.0,90190.0,0.000622]
[1765698239340,0.05022,90191.0,90190.0,0.000622]
[1765698240466,0.02579,90191.0,90190.0,0.000622]
[1765698241632,0.22174915,90192.0,90190.0,0.000622]
[1765698241817,0.22174915,90192.0,90191.0,0.02857]
[1765698242219,0.22174915,90192.0,90191.0,0.05121]
[1765698243175,0.22174915,90192.0,90191.0,0.02857]
[1765698245120,0.22174915,90192.0,90190.0,0.000622]
[1765698251876,0.22174915,90192.0,90191.0,0.05121]
[1765698257595,0.22174915,90192.0,90191.0,0.02857]
[1765698260387,0.22174915,90192.0,90191.0,0.05121]
[1765698261845,0.22174915,90192.0,90191.0,0.02857]
[1765698262554,0.22174915,90192.0,90191.0,0.05121]
[1765698263578,0.22174915,90192.0,90191.0,0.02857]
[1765698265049,0.22174915,90192.0,90191.0,0.06187056]
[1765698266277,0.0130862,90193.0,90191.0,0.06187056]
[1765698266752,0.0130862,90193.0,90191.0,0.02857]
[1765698266958,0.0130862,90193.0,90192.0,0.03330056]
[1765698274520,0.000386,90193.0,90192.0,0.07231056]
[1765698274719,0.000386,90193.0,90192.0,1.05850156]
[1765698277210,0.000386,90193.0,90192.0,1.06250156]
[1765698286958,0.000386,90193.0,90192.0,1.17321202]
[1765698290329,0.000386,90193.0,90192.0,0.18702102]
[1765698290560,0.000386,90193.0,90192.0,1.17321202]
[1765698298528,0.000386,90193.0,90192.0,1.06250156]
[1765698299673,0.000386,90193.0,90192.0,1.17321202]
[1765698300319,0.000386,90193.0,90192.0,1.06250156]
[1765698303576,0.000386,90193.0,90192.0,0.07631056]
[1765698303906,0.000386,90193.0,90192.0,1.06250156]
[1765698308152,0.000386,90193.0,90192.0,1.17321202]
[1765698308653,0.000386,90193.0,90192.0,1.06250156]
[1765698309021,0.000386,90193.0,90192.0,0.07631056]
[1765698309223,0.000386,90193.0,90192.0,1.06250156]
[1765698317155,0.000386,90193.0,90192.0,1.17321202]
[1765698317680,0.000386,90193.0,90192.0,1.06250156]
[1765698332699,0.000386,90193.0,90192.0,0.07631056]
[1765698332905,0.000386,90193.0,90192.0,1.06250156]
[1765698334109,0.000386,90193.0,90192.0,1.07439156]
[1765698335734,0.000386,90193.0,90192.0,0.08820056]
[1765698335942,0.000386,90193.0,90192.0,1.07439156]
[1765698341381,0.000386,90193.0,90192.0,1.18510202]
[1765698342018,0.000386,90193.0,90192.0,1.07439156]
[1765698345038,0.000386,90193.0,90192.0,0.08820056]
[1765698345238,0.000386,90193.0,90192.0,1.07439156]
[1765698347105,0.000386,90193.0,90192.0,0.08820056]
[1765698347312,0.000386,90193.0,90192.0,1.07439156]